fUSD/lending_fUSD_20240223
["ID","MTS","AMOUNT","RATE_DAILY","PERIOD"]
[314986608,1708715498936,-10139.29455134,0.00039002,3]
[314986609,1708715498945,-112559.63125632,0.00039002,2]
[314986610,1708715498978,-341.74739,0.0002686,2]
[314986611,1708715498989,-187.57910655,0.0002686,2]
[314986612,1708715498999,-275.98439355,0.00027397,10]
[314986613,1708715499010,-460.17560645,0.00027397,10]
[314986614,1708715499019,-199.75633462,0.00039002,2]
[314986615,1708715499030,-1297.33528681,0.00039002,2]
[314986616,1708715499133,-265.0065028,0.00039002,2]
[314986617,1708715499144,-683.90170175,0.00039002,2]
[314986618,1708715499155,-453.05648918,0.00039002,2]
[314986619,1708715499166,-892.9623729,0.00039002,2]
[314986620,1708715499179,-295.056,0.00039002,2]
[314986621,1708715499190,-20211.33320857,0.00039002,2]
[314986622,1708715499201,-96055.24512877,0.00039002,2]
[314986623,1708715499213,-649.19326457,0.00039002,2]
[314986624,1708715499226,-1618.88622349,0.00039002,2]
[314986625,1708715499237,-373.5068174,0.00039002,2]
[314986626,1708715499249,-500.0,0.00039002,2]
[314986627,1708715499260,-500.0,0.00039002,2]
[314986635,1708716632078,-673.07,0.00024253,2]
[314986636,1708716632089,-300.0,0.000249,2]
[314986637,1708716632098,-150.0,0.00025807,2]
[314986638,1708716632108,-150.0,0.00025807,2]
[314986639,1708716632118,-826.95266968,0.00025808,2]
[314986640,1708716632133,-4838.69402531,0.00025808,2]
[314986641,1708716632153,-439.62247958,0.00025808,2]
[314986642,1708716632166,-1527.22007561,0.00025808,2]
[314986643,1708716632179,-592.38522472,0.00025808,2]
[314986644,1708716632190,-2072.3835345,0.00025808,2]
[314986645,1708716632207,-786.57019386,0.00025808,2]
[314986646,1708716632219,-3443.36040815,0.00025808,2]
[314986647,1708716632319,-523.30610769,0.00025808,2]
[314986648,1708716632331,-658.46,0.00025808,2]
[314986649,1708716632344,-388.42893379,0.00025808,2]
[314986650,1708716632356,-255.0372575,0.00025808,2]
[314986701,1708716637995,-3873.77225467,0.00025808,2]
[314986702,1708716638049,-57766.80683494,0.00025808,2]
[314986703,1708716638060,-218.76273555,0.0002581,2]
[314986704,1708716638070,-1829.41,0.0002591,2]
[314986705,1708716638081,-778.58,0.00026033,2]
[314986706,1708716638091,-22619.39,0.00026058,2]
[314986707,1708716638102,-230.12,0.00026074,2]
[314986708,1708716638113,-1000.0,0.000262,2]
[314986709,1708716638123,-202.9,0.00026279,2]
[314986710,1708716638139,-2000.0,0.00026413,2]
[314986711,1708716638150,-162.47817339,0.00026499,2]
[314986712,1708716638161,-4970.94547964,0.00026499,2]
[314986713,1708716638172,-546.83406491,0.00026499,2]
[314986714,1708716638182,-199.14406426,0.00026499,2]
[314986715,1708716638193,-673.07,0.00026517,2]
[314986716,1708716638204,-1575.50708759,0.00026588,2]
[314986717,1708716638214,-500.0,0.00026597,2]
[314986718,1708716638226,-416.20474309,0.00026597,2]
[314986719,1708716638240,-500.0,0.00026597,2]
[314986720,1708716638251,-500.0,0.00026597,2]
[314986721,1708716638262,-500.0,0.00026597,2]
[314986722,1708716638273,-500.0,0.00026597,2]
[314986723,1708716638284,-1063533.61207516,0.00026598,2]
[314986724,1708716638295,-553.63,0.00026599,2]
[314986725,1708716638307,-212189.182,0.00026599,2]
[314986726,1708716638317,-199.14406426,0.00026599,2]
[314986727,1708716638328,-2041.956,0.00026699,2]
[314986728,1708716638339,-100000.0,0.00026699,2]
[314986729,1708716638349,-27121.63715846,0.00026798,2]
[314986730,1708716638360,-7764.71211729,0.00026798,2]
[314986731,1708716638370,-546.83406489,0.00026823,2]
[314986732,1708716638380,-189.91261095,0.00026885,2]
[314986733,1708716638392,-155.26,0.00026909,2]
[314986735,1708716638403,-155.26,0.00027115,2]
[314986739,1708716638413,-546.83406489,0.00027147,2]
[314986741,1708716638423,-152.54,0.00027301,2]
[314986743,1708716638433,-155.26,0.00027322,2]
[314986745,1708716638443,-155.22246941,0.00027393,2]
[314986747,1708716638453,-155.0,0.00027393,2]
[314986749,1708716638463,-405.59101521,0.00027393,2]
[314986751,1708716638473,-505.12344493,0.00027397,2]
[314986753,1708716638483,-264.24950795,0.00027397,2]
[314986755,1708716638493,-246.37425149,0.00027397,2]
[314986757,1708716638503,-501.48581882,0.00027397,2]
[314986760,1708716638514,-501.95488215,0.00027397,2]
[314986762,1708716638525,-507.23790442,0.00027397,2]
[314986764,1708716638535,-500.0,0.00027397,2]
[314986766,1708716638545,-500.0,0.00027397,2]
[314986768,1708716638556,-500.0,0.00027397,2]
[314986771,1708716638571,-500.0,0.00027397,2]
[314986809,1708716638906,-500.0,0.00027397,2]
[314986811,1708716638916,-500.0,0.00027397,2]
[314986813,1708716638926,-503.1415563,0.00027397,2]
[314986815,1708716638936,-517.31326104,0.00027397,2]
[314986817,1708716638945,-500.0,0.00027397,2]
[314986818,1708716638955,-480.74265808,0.00027397,2]
[314986819,1708716638965,-500.0,0.00027397,2]
[314986820,1708716638974,-500.0,0.00027397,2]
[314986821,1708716638984,-542.32530418,0.00027397,2]
[314986822,1708716638994,-500.0,0.00027397,2]
[314986823,1708716639004,-531.02662864,0.00027397,2]
[314986824,1708716639014,-500.0,0.00027397,2]
[314986825,1708716639024,-500.0,0.00027397,2]
[314986826,1708716639033,-160.10438132,0.00027397,2]
[314986827,1708716639043,-500.0,0.00027397,2]
[314986828,1708716639053,-500.0,0.00027397,2]
[314986829,1708716639062,-500.0,0.00027397,2]
[314986831,1708716639072,-509.71924901,0.00027397,2]
[314986833,1708716639082,-500.0,0.00027397,2]
[314986835,1708716639091,-500.0,0.00027397,2]
[314986837,1708716639100,-500.0,0.00027397,2]
[314986839,1708716639110,-500.0,0.00027397,2]
[314986841,1708716639119,-613.02983096,0.00027397,2]
[314986843,1708716639128,-500.0,0.00027397,2]
[314986845,1708716639138,-500.0,0.00027397,2]
[314986847,1708716639147,-510.76069141,0.00027397,2]
[314986849,1708716639157,-500.0,0.00027397,2]
[314986851,1708716639168,-500.0,0.00027397,2]
[314986853,1708716639178,-500.0,0.00027397,2]
[314986855,1708716639187,-500.0,0.00027397,2]
[314986857,1708716639197,-560.7286483,0.00027397,2]
[314986859,1708716639206,-500.0,0.00027397,2]
[314986861,1708716639215,-500.0,0.00027397,2]
[314986863,1708716639224,-500.0,0.00027397,2]
[314986865,1708716639238,-500.0,0.00027397,2]
[314986867,1708716639248,-500.0,0.00027397,2]
[314986869,1708716639257,-513.04310261,0.00027397,2]
[314986871,1708716639267,-500.0,0.00027397,2]
[314986873,1708716639276,-500.0,0.00027397,2]
[314986875,1708716639286,-500.0,0.00027397,2]
[314986877,1708716639295,-500.0,0.00027397,2]
[314986879,1708716639305,-1000.0,0.00027397,7]
[314986881,1708716639315,-501.23674738,0.00027397,2]
[314986883,1708716639325,-500.0,0.00027397,2]
[314986886,1708716639336,-500.0,0.00027397,2]
[314986888,1708716639345,-500.0,0.00027397,2]
[314986890,1708716639355,-500.0,0.00027397,2]
[314986891,1708716639364,-500.0,0.00027397,2]
[314986893,1708716639374,-500.0,0.00027397,2]
[314986894,1708716639383,-500.0,0.00027397,2]
[314986895,1708716639393,-578.81365705,0.00027397,2]
[314986896,1708716639403,-500.0,0.00027397,2]
[314986897,1708716639412,-502.84569267,0.00027397,2]
[314986898,1708716639421,-500.0,0.00027397,2]
[314986899,1708716639430,-500.0,0.00027397,2]
[314986900,1708716639440,-500.0,0.00027397,2]
[314986901,1708716639449,-500.0,0.00027397,2]
[314986902,1708716639458,-500.0,0.00027397,2]
[314986903,1708716639467,-500.0,0.00027397,2]
[314986904,1708716639476,-500.0,0.00027397,2]
[314986905,1708716639486,-502.46754737,0.00027397,2]
[314986906,1708716639495,-500.0,0.00027397,2]
[314986907,1708716639505,-500.0,0.00027397,2]
[314986908,1708716639514,-500.0,0.00027397,2]
[314986909,1708716639523,-500.0,0.00027397,2]
[314986910,1708716639532,-500.0,0.00027397,2]
[314986911,1708716639542,-500.0,0.00027397,2]
[314986912,1708716639551,-198.25762288,0.00027397,2]
[314986913,1708716639561,-500.0,0.00027397,2]
[314986914,1708716639570,-500.0,0.00027397,2]
[314986915,1708716639580,-500.0,0.00027397,2]
[314986916,1708716639589,-500.0,0.00027397,2]
[314986917,1708716639599,-500.0,0.00027397,2]
[314986918,1708716639608,-500.0,0.00027397,2]
[314986919,1708716639618,-500.0,0.00027397,2]
[314986920,1708716639627,-500.0,0.00027397,2]
[314986921,1708716639636,-500.0,0.00027397,2]
[314986922,1708716639646,-500.0,0.00027397,2]
[314986923,1708716639655,-500.0,0.00027397,2]
[314986924,1708716639666,-500.0,0.00027397,2]
[314986925,1708716639675,-500.0,0.00027397,2]
[314986926,1708716639684,-500.0,0.00027397,2]
[314986927,1708716639694,-500.0,0.00027397,2]
[314986928,1708716639703,-500.0,0.00027397,2]
[314986929,1708716639712,-500.0,0.00027397,2]
[314986930,1708716639722,-500.0,0.00027397,2]
[314986931,1708716639731,-500.0,0.00027397,2]
[314986932,1708716639742,-500.0,0.00027397,2]
[314986933,1708716639752,-500.0,0.00027397,2]
[314986934,1708716639761,-500.0,0.00027397,2]
[314986935,1708716639771,-506.35375676,0.00027397,2]
[314986936,1708716639781,-500.0,0.00027397,2]
[314986937,1708716639791,-500.0,0.00027397,2]
[314986938,1708716639801,-500.0,0.00027397,2]
[314986939,1708716639810,-500.0,0.00027397,2]
[314986940,1708716639820,-500.0,0.00027397,2]
[314986941,1708716639829,-500.0,0.00027397,2]
[314986942,1708716639839,-500.0,0.00027397,2]
[314986943,1708716639848,-500.0,0.00027397,2]
[314986944,1708716639858,-500.0,0.00027397,2]
[314986945,1708716639867,-500.0,0.00027397,2]
[314986946,1708716639877,-500.0,0.00027397,2]
[314986947,1708716639887,-500.0,0.00027397,2]
[314986948,1708716639897,-500.0,0.00027397,2]
[314986949,1708716639907,-500.0,0.00027397,2]
[314986950,1708716639917,-500.0,0.00027397,2]
[314986951,1708716639927,-500.0,0.00027397,2]
[314986952,1708716639936,-672.42,0.00027397,2]
[314986953,1708716639946,-500.0,0.00027397,2]
[314986954,1708716639956,-500.0,0.00027397,2]
[314986955,1708716639966,-931.36,0.00027397,2]
[314986956,1708716639975,-500.0,0.00027397,2]
[314986957,1708716639984,-500.0,0.00027397,2]
[314986958,1708716639994,-500.0,0.00027397,2]
[314986959,1708716640005,-500.0,0.00027397,2]
[314986960,1708716640015,-500.0,0.00027397,2]
[314986961,1708716640024,-500.0,0.00027397,2]
[314986962,1708716640034,-500.0,0.00027397,2]
[314986963,1708716640043,-924.78,0.00027397,2]
[314986964,1708716640052,-1249.12,0.00027397,2]
[314986965,1708716640062,-500.0,0.00027397,2]
[314986966,1708716640071,-500.0,0.00027397,2]
[314986967,1708716640080,-500.0,0.00027397,2]
[314986968,1708716640089,-500.0,0.00027397,2]
[314986969,1708716640099,-500.0,0.00027397,2]
[314986970,1708716640108,-500.0,0.00027397,2]
[314986971,1708716640117,-500.0,0.00027397,2]
[314986972,1708716640126,-500.0,0.00027397,2]
[314986973,1708716640136,-500.0,0.00027397,2]
[314986974,1708716640146,-500.0,0.00027397,2]
[314986975,1708716640155,-500.0,0.00027397,2]
[314986976,1708716640164,-500.0,0.00027397,2]
[314986977,1708716640173,-500.0,0.00027397,2]
[314986978,1708716640182,-500.0,0.00027397,2]
[314986979,1708716640191,-597.21,0.00027397,2]
[314986980,1708716640200,-500.0,0.00027397,2]
[314986981,1708716640210,-500.0,0.00027397,2]
[314986982,1708716640219,-500.0,0.00027397,2]
[314986983,1708716640229,-500.0,0.00027397,2]
[314986984,1708716640242,-500.0,0.00027397,2]
[314986985,1708716640252,-500.0,0.00027397,2]
[314986986,1708716640261,-500.0,0.00027397,2]
[314986987,1708716640270,-500.0,0.00027397,2]
[314986988,1708716640281,-956.56,0.00027397,2]
[314986989,1708716640290,-500.0,0.00027397,2]
[314986990,1708716640299,-500.0,0.00027397,2]
[314986991,1708716640309,-500.0,0.00027397,2]
[314986992,1708716640318,-500.0,0.00027397,2]
[314986993,1708716640327,-500.0,0.00027397,2]
[314986994,1708716640337,-2365.53,0.00027397,2]
[314986995,1708716640347,-1344.39,0.00027397,2]
[314986996,1708716640356,-500.0,0.00027397,2]
[314986997,1708716640365,-500.0,0.00027397,2]
[314986998,1708716640374,-500.0,0.00027397,2]
[314986999,1708716640383,-500.0,0.00027397,2]
[314987000,1708716640393,-500.0,0.00027397,2]
[314987001,1708716640403,-1067.67,0.00027397,2]
[314987002,1708716640414,-1433.17,0.00027397,2]
[314987003,1708716640423,-500.0,0.00027397,2]
[314987004,1708716640433,-500.0,0.00027397,2]
[314987005,1708716640443,-1175.68,0.00027397,2]
[314987006,1708716640452,-500.0,0.00027397,2]
[314987007,1708716640462,-500.0,0.00027397,2]
[314987008,1708716640471,-500.0,0.00027397,2]
[314987009,1708716640481,-500.0,0.00027397,2]
[314987010,1708716640491,-500.0,0.00027397,2]
[314987011,1708716640500,-150.0,0.00027397,7]
[314987012,1708716640510,-3334.59,0.00027397,2]
[314987013,1708716640520,-500.0,0.00027397,2]
[314987014,1708716640529,-150.0,0.00027397,7]
[314987015,1708716640539,-500.0,0.00027397,2]
[314987016,1708716640549,-500.0,0.00027397,2]
[314987017,1708716640558,-1551.36,0.00027397,2]
[314987018,1708716640567,-524.71649343,0.00027397,2]
[314987019,1708716640576,-2604.11,0.00027397,2]
[314987020,1708716640586,-500.0,0.00027397,2]
[314987021,1708716640595,-702.0,0.00027397,2]
[314987022,1708716640604,-500.0,0.00027397,2]
[314987023,1708716640614,-3056.12,0.00027397,2]
[314987024,1708716640623,-500.0,0.00027397,2]
[314987025,1708716640633,-500.0,0.00027397,2]
[314987026,1708716640643,-500.0,0.00027397,2]
[314987027,1708716640652,-500.0,0.00027397,2]
[314987028,1708716640662,-500.0,0.00027397,2]
[314987029,1708716640671,-500.0,0.00027397,2]
[314987030,1708716640680,-324.9,0.00027397,10]
[314987031,1708716640690,-559.31,0.00027397,10]
[314987032,1708716640699,-466.09,0.00027397,10]
[314987033,1708716640708,-2908.05,0.00027397,2]
[314987034,1708716640718,-750.0,0.000274,2]
[314987035,1708716640727,-2000.0,0.000274,2]
[314987036,1708716640737,-1365.79,0.0002746,2]
[314987037,1708716640747,-546.83406489,0.00027471,2]
[314987038,1708716640756,-518.95,0.00027477,2]
[314987039,1708716640766,-6939.01706374,0.000275,2]
[314987040,1708716640776,-155.26,0.00027529,2]
[314987041,1708716640786,-500.0,0.00027534,2]
[314987042,1708716640796,-500.0,0.00027534,2]
[314987043,1708716640805,-500.0,0.00027534,2]
[314987044,1708716640815,-500.0,0.00027534,2]
[314987045,1708716640825,-500.0,0.00027534,2]
[314987046,1708716640834,-500.0,0.00027534,2]
[314987047,1708716640844,-500.0,0.00027534,2]
[314987048,1708716640854,-500.0,0.00027534,2]
[314987049,1708716640864,-500.0,0.00027534,2]
[314987050,1708716640874,-369.50837681,0.00027534,2]
[314987051,1708716640884,-500.0,0.00027534,2]
[314987052,1708716640893,-500.0,0.00027534,2]
[314987053,1708716640903,-1000.0,0.00027534,7]
[314987054,1708716640913,-500.0,0.00027534,2]
[314987055,1708716640923,-500.0,0.00027534,2]
[314987056,1708716640933,-500.0,0.00027534,2]
[314987057,1708716640942,-500.0,0.00027534,2]
[314987058,1708716640951,-500.0,0.00027534,2]
[314987059,1708716640961,-500.0,0.00027534,2]
[314987060,1708716640970,-500.0,0.00027534,2]
[314987061,1708716640980,-500.0,0.00027534,2]
[314987062,1708716640989,-312.84262784,0.00027534,2]
[314987063,1708716640999,-500.0,0.00027534,2]
[314987064,1708716641008,-500.0,0.00027534,2]
[314987065,1708716641017,-500.0,0.00027534,2]
[314987066,1708716641027,-500.0,0.00027534,2]
[314987067,1708716641037,-500.0,0.00027534,2]
[314987068,1708716641046,-500.0,0.00027534,2]
[314987069,1708716641056,-500.0,0.00027534,2]
[314987070,1708716641065,-500.0,0.00027534,2]
[314987071,1708716641074,-500.0,0.00027534,2]
[314987072,1708716641085,-500.0,0.00027534,2]
[314987073,1708716641095,-500.0,0.00027534,2]
[314987074,1708716641104,-500.0,0.00027534,2]
[314987075,1708716641113,-500.0,0.00027534,2]
[314987076,1708716641123,-500.0,0.00027534,2]
[314987077,1708716641132,-500.0,0.00027534,2]
[314987078,1708716641141,-500.0,0.00027534,2]
[314987079,1708716641151,-500.0,0.00027534,2]
[314987080,1708716641160,-500.0,0.00027534,2]
[314987081,1708716641169,-500.0,0.00027534,2]
[314987082,1708716641179,-500.0,0.00027534,2]
[314987083,1708716641188,-500.0,0.00027534,2]
[314987084,1708716641197,-500.0,0.00027534,2]
[314987085,1708716641207,-500.0,0.00027534,2]
[314987086,1708716641267,-500.0,0.00027534,2]
[314987087,1708716641277,-500.0,0.00027534,2]
[314987088,1708716641286,-500.0,0.00027534,2]
[314987089,1708716641296,-500.0,0.00027534,2]
[314987090,1708716641306,-600.0,0.00027534,2]
[314987091,1708716641315,-500.0,0.00027534,2]
[314987092,1708716641324,-500.0,0.00027534,2]
[314987093,1708716641333,-500.0,0.00027534,2]
[314987094,1708716641342,-500.0,0.00027534,2]
[314987095,1708716641351,-672.42,0.00027534,2]
[314987096,1708716641360,-500.0,0.00027534,2]
[314987097,1708716641369,-500.0,0.00027534,2]
[314987098,1708716641379,-931.36,0.00027534,2]
[314987099,1708716641388,-500.0,0.00027534,2]
[314987100,1708716641397,-500.0,0.00027534,2]
[314987101,1708716641407,-500.0,0.00027534,2]
[314987102,1708716641416,-500.0,0.00027534,2]
[314987103,1708716641426,-500.0,0.00027534,2]
[314987104,1708716641435,-500.0,0.00027534,2]
[314987105,1708716641445,-500.0,0.00027534,2]
[314987106,1708716641454,-924.78,0.00027534,2]
[314987107,1708716641463,-1249.12,0.00027534,2]
[314987108,1708716641473,-500.0,0.00027534,2]
[314987109,1708716641482,-500.0,0.00027534,2]
[314987110,1708716641492,-500.0,0.00027534,2]
[314987111,1708716641501,-500.0,0.00027534,2]
[314987112,1708716641510,-500.0,0.00027534,2]
[314987113,1708716641520,-500.0,0.00027534,2]
[314987114,1708716641529,-500.0,0.00027534,2]
[314987115,1708716641539,-500.0,0.00027534,2]
[314987116,1708716641548,-500.0,0.00027534,2]
[314987117,1708716641557,-500.0,0.00027534,2]
[314987118,1708716641567,-500.0,0.00027534,2]
[314987119,1708716641577,-500.0,0.00027534,2]
[314987121,1708716641586,-500.0,0.00027534,2]
[314987123,1708716641596,-500.0,0.00027534,2]
[314987125,1708716641605,-597.21,0.00027534,2]
[314987128,1708716641615,-500.0,0.00027534,2]
[314987130,1708716641624,-500.0,0.00027534,2]
[314987131,1708716641634,-500.0,0.00027534,2]
[314987133,1708716641643,-500.0,0.00027534,2]
[314987136,1708716641653,-500.0,0.00027534,2]
[314987138,1708716641662,-500.0,0.00027534,2]
[314987139,1708716641671,-500.0,0.00027534,2]
[314987141,1708716641681,-956.56,0.00027534,2]
[314987144,1708716641690,-500.0,0.00027534,2]
[314987145,1708716641699,-306.22049693,0.00027534,2]
[314987148,1708716641709,-500.0,0.00027534,2]
[314987150,1708716641719,-2365.53,0.00027534,2]
[314987152,1708716641728,-1344.39,0.00027534,2]
[314987153,1708716641738,-500.0,0.00027534,2]
[314987156,1708716641747,-500.0,0.00027534,2]
[314987158,1708716641756,-351.38,0.00027534,2]
[314987159,1708716641765,-500.0,0.00027534,2]
[314987161,1708716641774,-500.0,0.00027534,2]
[314987164,1708716641786,-1067.67,0.00027534,2]
[314987166,1708716641796,-1433.17,0.00027534,2]
[314987168,1708716641805,-500.0,0.00027534,2]
[314987170,1708716641815,-500.0,0.00027534,2]
[314987172,1708716641825,-1175.68,0.00027534,2]
[314987174,1708716641835,-500.0,0.00027534,2]
[314987175,1708716641844,-500.0,0.00027534,2]
[314987178,1708716641854,-500.0,0.00027534,2]
[314987180,1708716641863,-500.0,0.00027534,2]
[314987181,1708716641873,-3334.59,0.00027534,2]
[314987183,1708716641882,-500.0,0.00027534,2]
[314987186,1708716641892,-500.0,0.00027534,2]
[314987187,1708716641901,-500.0,0.00027534,2]
[314987190,1708716641911,-1551.36,0.00027534,2]
[314987193,1708716641930,-2604.11,0.00027534,2]
[314987195,1708716641942,-500.0,0.00027534,2]
[314987197,1708716641951,-702.0,0.00027534,2]
[314987199,1708716641960,-500.0,0.00027534,2]
[314987201,1708716641970,-3056.12,0.00027534,2]
[314987203,1708716641980,-500.0,0.00027534,2]
[314987205,1708716641989,-500.0,0.00027534,2]
[314987207,1708716641998,-500.0,0.00027534,2]
[314987209,1708716642007,-500.0,0.00027534,2]
[314987211,1708716642016,-500.0,0.00027534,2]
[314987213,1708716642025,-2908.05,0.00027556,2]
[314987215,1708716642035,-4970.94547961,0.00027625,2]
[314987217,1708716642044,-150.0,0.00027644,7]
[314987219,1708716642053,-150.0,0.00027644,7]
[314987221,1708716642062,-1575.50708759,0.00027661,2]
[314987223,1708716642073,-527.04900557,0.00027671,2]
[314987225,1708716642083,-500.0,0.00027671,2]
[314987227,1708716642092,-500.0,0.00027671,2]
[314987229,1708716642102,-500.0,0.00027671,2]
[314987231,1708716642111,-500.0,0.00027671,2]
[314987233,1708716642120,-500.0,0.00027671,2]
[314987235,1708716642129,-500.0,0.00027671,2]
[314987237,1708716642139,-500.0,0.00027671,2]
[314987239,1708716642148,-500.0,0.00027671,2]
[314987241,1708716642158,-500.0,0.00027671,2]
[314987243,1708716642168,-500.0,0.00027671,2]
[314987245,1708716642177,-165.80030449,0.00027671,2]
[314987247,1708716642186,-500.0,0.00027671,2]
[314987248,1708716642195,-500.0,0.00027671,2]
[314987249,1708716642204,-500.0,0.00027671,2]
[314987250,1708716642214,-500.0,0.00027671,2]
[314987251,1708716642223,-500.0,0.00027671,2]
[314987252,1708716642236,-500.0,0.00027671,2]
[314987253,1708716642246,-500.0,0.00027671,2]
[314987254,1708716642256,-500.0,0.00027671,2]
[314987255,1708716642266,-500.0,0.00027671,2]
[314987256,1708716642275,-500.0,0.00027671,2]
[314987257,1708716642285,-500.0,0.00027671,2]
[314987258,1708716642294,-394.34896869,0.00027671,2]
[314987259,1708716642304,-500.0,0.00027671,2]
[314987260,1708716642314,-500.0,0.00027671,2]
[314987261,1708716642325,-500.0,0.00027671,2]
[314987262,1708716642336,-500.0,0.00027671,2]
[314987263,1708716642345,-500.0,0.00027671,2]
[314987264,1708716642355,-500.0,0.00027671,2]
[314987265,1708716642364,-500.0,0.00027671,2]
[314987266,1708716642374,-672.42,0.00027671,2]
[314987267,1708716642385,-435.47486559,0.00027671,2]
[314987268,1708716642394,-500.0,0.00027671,2]
[314987269,1708716642403,-931.36,0.00027671,2]
[314987270,1708716642413,-460.47466912,0.00027671,2]
[314987271,1708716642422,-500.0,0.00027671,2]
[314987272,1708716642432,-341.99,0.00027671,2]
[314987273,1708716642441,-500.0,0.00027671,2]
[314987274,1708716642451,-500.0,0.00027671,2]
[314987275,1708716642460,-500.0,0.00027671,2]
[314987276,1708716642469,-500.0,0.00027671,2]
[314987277,1708716642479,-924.78,0.00027671,2]
[314987278,1708716642488,-1249.12,0.00027671,2]
[314987279,1708716642497,-500.0,0.00027671,2]
[314987280,1708716642506,-500.0,0.00027671,2]
[314987281,1708716642516,-500.0,0.00027671,2]
[314987282,1708716642526,-500.0,0.00027671,2]
[314987283,1708716642535,-320.18743666,0.00027671,2]
[314987284,1708716642545,-500.0,0.00027671,2]
[314987285,1708716642554,-500.0,0.00027671,2]
[314987286,1708716642563,-500.0,0.00027671,2]
[314987287,1708716642573,-500.0,0.00027671,2]
[314987288,1708716642582,-500.0,0.00027671,2]
[314987289,1708716642591,-500.0,0.00027671,2]
[314987290,1708716642601,-500.0,0.00027671,2]
[314987291,1708716642610,-500.0,0.00027671,2]
[314987292,1708716642619,-597.21,0.00027671,2]
[314987293,1708716642634,-500.0,0.00027671,2]
[314987294,1708716642644,-500.0,0.00027671,2]
[314987295,1708716642654,-500.0,0.00027671,2]
[314987296,1708716642663,-500.0,0.00027671,2]
[314987297,1708716642673,-500.0,0.00027671,2]
[314987298,1708716642682,-500.0,0.00027671,2]
[314987299,1708716642692,-956.56,0.00027671,2]
[314987300,1708716642702,-500.0,0.00027671,2]
[314987301,1708716642712,-2365.53,0.00027671,2]
[314987302,1708716642721,-1344.39,0.00027671,2]
[314987303,1708716642731,-500.0,0.00027671,2]
[314987304,1708716642742,-500.0,0.00027671,2]
[314987305,1708716642752,-500.0,0.00027671,2]
[314987306,1708716642762,-500.0,0.00027671,2]
[314987307,1708716642773,-1067.67,0.00027671,2]
[314987308,1708716642783,-1433.17,0.00027671,2]
[314987310,1708716642792,-500.0,0.00027671,2]
[314987311,1708716642802,-1175.68,0.00027671,2]
[314987312,1708716642812,-500.0,0.00027671,2]
[314987313,1708716642822,-500.0,0.00027671,2]
[314987314,1708716642833,-500.0,0.00027671,2]
[314987315,1708716642843,-500.0,0.00027671,2]
[314987316,1708716642853,-3334.59,0.00027671,2]
[314987317,1708716642864,-500.0,0.00027671,2]
[314987318,1708716642874,-500.0,0.00027671,2]
[314987319,1708716642886,-500.0,0.00027671,2]
[314987320,1708716642897,-1551.36,0.00027671,2]
[314987321,1708716642907,-2604.11,0.00027671,2]
[314987322,1708716642917,-500.0,0.00027671,2]
[314987323,1708716642926,-702.0,0.00027671,2]
[314987324,1708716642936,-3056.12,0.00027671,2]